bitfinex-derivatives/quotes_BTCF0:USTF0_20240923
["timestamp","ask_amount","ask_price","bid_price","bid_amount"]
[1727066085522,0.001,63856.0,63855.0,0.31323301]
[1727066085826,0.078291,63861.0,63856.0,0.078296]
[1727066086217,0.078291,63861.0,63857.0,0.23371103]
[1727066086823,0.078291,63861.0,63857.0,0.31200603]
[1727066087631,0.00335026,63859.0,63857.0,0.31200603]
[1727066087834,0.08164326,63859.0,63857.0,0.31200603]
[1727066089538,0.001,63859.0,63858.0,0.078294]
[1727066089832,0.078278,63871.0,63858.0,1.30426538]
[1727066090028,0.078278,63871.0,63865.0,0.13]
[1727066090721,0.3608,63875.0,63864.0,0.078286]
[1727066090922,0.3608,63875.0,63862.0,0.07796032]
[1727066090923,0.078288,63863.0,63862.0,0.07796032]
[1727066091126,0.078288,63863.0,63860.0,0.078292]
[1727066091631,0.3608,63867.0,63863.0,0.078287]
[1727066092031,0.439084,63867.0,63863.0,0.078287]
[1727066092231,0.078285,63866.0,63863.0,0.078287]
[1727066092423,0.078286,63865.0,63863.0,0.078287]
[1727066092624,0.078293,63859.0,63858.0,0.00216]
[1727066092825,0.569093,63859.0,63848.0,0.07796032]
[1727066093131,0.569093,63859.0,63843.0,0.0476]
[1727066093132,0.13,63853.0,63847.0,0.07796032]
[1727066093332,0.078303,63851.0,63847.0,0.07796032]
[1727066093939,0.078303,63851.0,63848.0,0.002]
[1727066094332,0.13,63849.0,63848.0,0.002]
[1727066095241,0.13,63849.0,63841.0,0.07796032]
[1727066095242,0.078314,63842.0,63841.0,0.07796032]
[1727066095425,0.078314,63842.0,63831.0,0.443326]
[1727066095426,0.078315,63841.0,63838.0,0.07796032]
[1727066095629,0.3608,63842.0,63839.0,0.23373492]
[1727066095835,0.3608,63842.0,63840.0,0.17886608]
[1727066096044,0.3608,63842.0,63840.0,0.07796032]
[1727066096540,0.3608,63842.0,63841.0,0.17880938]
[1727066096944,0.001,63842.0,63841.0,0.10084906]
[1727066097142,0.001,63842.0,63841.0,0.21890379]
[1727066097332,0.001,63842.0,63841.0,0.12533501]
[1727066097537,0.001,63842.0,63841.0,0.21903162]
[1727066098130,0.001,63842.0,63841.0,0.12533501]
[1727066098426,0.0005025,63842.0,63841.0,0.12533469]
[1727066098639,0.0005025,63842.0,63841.0,0.42220298]
[1727066098850,0.0015025,63842.0,63841.0,0.42220298]
[1727066099031,0.078294,63859.0,63853.0,0.0783]
[1727066099236,0.3608,63857.0,63852.0,0.07808077]
[1727066099537,0.13,63856.0,63852.0,0.07808077]
[1727066099837,0.13,63856.0,63851.0,0.07808077]
[1727066100031,0.3608,63857.0,63853.0,0.0783]
[1727066101026,0.078297,63856.0,63851.0,0.07808077]
[1727066101337,0.3608,63857.0,63851.0,0.07808077]
[1727066101338,0.078298,63855.0,63851.0,0.07808077]
[1727066101540,0.13,63855.0,63851.0,0.07808077]
[1727066101738,0.13,63855.0,63847.0,0.3608]
[1727066101739,0.078302,63852.0,63850.0,0.07808077]
[1727066101941,0.078302,63852.0,63851.0,0.0244841]
[1727066102136,0.078302,63852.0,63849.0,0.07808077]
[1727066102344,0.13,63855.0,63850.0,0.07808077]
[1727066102639,0.002,63856.0,63851.0,0.02648346]
[1727066102837,0.002,63856.0,63852.0,0.02448321]
[1727066103046,0.002,63856.0,63852.0,0.07808077]
[1727066103341,0.13234931,63873.0,63855.0,0.13]
[1727066103539,0.09734931,63873.0,63864.0,0.078287]
[1727066103743,0.09734931,63873.0,63864.0,0.208287]
[1727066103944,0.09734931,63873.0,63864.0,0.078287]
[1727066104439,0.22734931,63873.0,63864.0,0.078287]
[1727066105649,0.3668,63865.0,63864.0,0.078287]
[1727066106144,0.3628,63865.0,63864.0,0.081287]
[1727066106436,0.441086,63865.0,63864.0,0.003]
[1727066106940,0.078287,63864.0,63858.0,0.078293]
[1727066107135,0.078287,63864.0,63856.0,0.07807805]
[1727066107334,0.078287,63864.0,63859.0,0.23566991]
[1727066107531,0.078291,63861.0,63857.0,0.31374796]
[1727066107737,0.078291,63861.0,63858.0,0.26014999]
[1727066108037,0.13,63864.0,63857.0,0.07807805]
[1727066108239,0.446086,63865.0,63858.0,0.02447971]
[1727066108433,0.446086,63865.0,63859.0,0.31374951]
[1727066108434,0.3678,63865.0,63859.0,0.31374951]
[1727066108643,0.13,63864.0,63859.0,0.078293]
[1727066108937,0.131,63864.0,63860.0,0.23643027]
[1727066109144,0.132,63864.0,63860.0,0.23643027]
[1727066109543,0.078291,63862.0,63860.0,0.23643027]
[1727066109733,0.131,63864.0,63860.0,0.23643027]
[1727066109934,0.208288,63864.0,63861.0,0.07829]
[1727066110136,0.001,63865.0,63860.0,0.23643027]
[1727066110335,0.001,63865.0,63863.0,0.078288]
[1727066110742,0.001,63865.0,63864.0,0.078287]
[1727066111135,0.3608,63871.0,63868.0,0.078281]
[1727066112445,0.3708,63871.0,63868.0,0.078281]
[1727066112838,0.3708,63871.0,63869.0,0.078281]
[1727066113442,0.0972,63882.0,63870.0,0.72508558]
[1727066113641,0.0493,63882.0,63877.0,0.07827]
[1727066114153,0.0493,63882.0,63870.0,0.20807805]
[1727066114154,0.078264,63883.0,63878.0,0.078269]
[1727066114651,0.078264,63883.0,63872.0,0.07807805]
[1727066114948,0.13,63880.0,63876.0,0.14067574]
[1727066115152,0.13,63880.0,63876.0,0.078271]
[1727066116655,0.01,63883.0,63875.0,0.13]
[1727066116848,0.01,63880.0,63878.0,0.06240474]
[1727066117045,0.01,63880.0,63879.0,0.21414602]
[1727066117252,0.00234851,63894.0,63879.0,0.80059408]
[1727066117552,0.3608,63890.0,63887.0,0.06233516]
[1727066117747,0.3608,63890.0,63880.0,0.1236248]
[1727066117748,0.078259,63887.0,63884.0,0.06233516]
[1727066117941,0.13,63885.0,63883.0,0.06233516]
[1727066118264,0.13,63893.0,63879.0,0.11133516]
[1727066118557,0.003,63880.0,63879.0,0.49287304]
[1727066118743,0.003,63880.0,63879.0,0.13207304]
[1727066118952,0.208261,63885.0,63884.0,0.001]
[1727066120250,0.211261,63885.0,63884.0,0.001]
[1727066120552,0.133,63885.0,63879.0,0.003]
[1727066120858,0.4908,63880.0,63879.0,0.003]
[1727066121046,0.4908,63880.0,63875.0,0.23564807]
[1727066121753,0.569068,63880.0,63879.0,0.001]
[1727066122252,0.078269,63879.0,63875.0,0.23564807]
[1727066122460,0.07827,63878.0,63875.0,0.23564807]
[1727066122659,0.4908,63880.0,63869.0,0.12518]
[1727066122850,0.3608,63880.0,63873.0,0.13]
[1727066123073,0.3608,63880.0,63878.0,0.078269]
[1727066123245,0.3608,63880.0,63878.0,0.208269]
[1727066123447,0.3648,63880.0,63878.0,0.078269]
[1727066123744,0.3648,63880.0,63872.0,0.06231227]
[1727066123745,0.83044,63879.0,63872.0,0.06231227]
[1727066124060,0.078292,63860.0,63859.0,0.0036]
[1727066124353,0.078299,63854.0,63852.0,0.0457]
[1727066124555,0.078301,63853.0,63848.0,0.00208]
[1727066124748,0.078301,63853.0,63845.0,0.07831]
[1727066124946,0.078301,63853.0,63847.0,0.00710048]
[1727066125155,0.078301,63853.0,63847.0,0.00234934]
[1727066125553,0.078302,63852.0,63847.0,0.00234934]
[1727066125858,0.078302,63852.0,63848.0,0.014]
[1727066126854,0.001,63853.0,63848.0,0.014]
[1727066126855,0.078303,63851.0,63848.0,0.014]
[1727066127256,0.078303,63851.0,63847.0,0.00234934]
[1727066127568,0.3608,63848.0,63847.0,0.01634934]
[1727066127865,0.3608,63848.0,63847.0,0.00234934]
[1727066128454,0.3608,63848.0,63847.0,0.02834934]
[1727066129954,0.3618,63848.0,63847.0,0.02834934]
[1727066135469,0.3618,63848.0,63847.0,0.026]
[1727066137269,0.3618,63848.0,63847.0,0.156]
[1727066137471,0.3618,63848.0,63847.0,0.234308]
[1727066138570,0.3618,63848.0,63847.0,0.104308]
[1727066139881,0.3618,63848.0,63847.0,1.304188]
[1727066141469,0.3618,63848.0,63847.0,0.704188]
[1727066141673,0.3618,63848.0,63847.0,1.304188]
[1727066141872,0.001,63848.0,63847.0,1.32867158]
[1727066142073,0.0078,63882.0,63873.0,0.078276]
[1727066142282,0.3608,63886.0,63873.0,0.83048]
[1727066142577,0.3608,63886.0,63878.0,0.13]
[1727066143070,0.3608,63886.0,63883.0,0.078263]
[1727066144068,0.3608,63886.0,63878.0,0.133]
[1727066144069,0.3658,63886.0,63878.0,0.133]
[1727066144462,0.3658,63886.0,63879.0,0.23592496]
[1727066144674,0.3658,63886.0,63883.0,0.078263]
[1727066145178,0.13,63891.0,63883.0,0.078263]
[1727066145970,0.001,63886.0,63883.0,0.078263]
[1727066146569,0.001,63886.0,63878.0,0.00474896]
[1727066146768,0.001,63886.0,63874.0,0.0464]
[1727066146769,0.078263,63884.0,63874.0,0.0464]
[1727066146977,0.3608,63885.0,63874.0,0.0464]
[1727066147182,0.3608,63885.0,63875.0,0.2350262]
[1727066147675,0.214261,63886.0,63876.0,0.04665267]
[1727066147872,0.209261,63886.0,63877.0,0.3608]
[1727066148178,0.001,63886.0,63885.0,0.13]
[1727066148489,0.07825,63894.0,63888.0,0.078257]
[1727066149174,0.078252,63893.0,63885.0,0.04665267]
[1727066149373,0.13,63890.0,63883.0,0.078263]
[1727066149775,0.13,63890.0,63884.0,0.23605303]
[1727066150773,0.132,63890.0,63884.0,0.23605303]
[1727066151177,0.13,63885.0,63877.0,0.3608]
[1727066151483,0.208261,63885.0,63879.0,0.078268]
[1727066152386,0.208261,63885.0,63874.0,0.05124158]
[1727066152387,0.13,63885.0,63874.0,0.05124158]
[1727066152570,0.078265,63882.0,63875.0,0.078273]
[1727066152775,0.078265,63882.0,63876.0,0.078272]
[1727066153175,0.078265,63882.0,63879.0,0.004]
[1727066153578,0.078266,63881.0,63879.0,0.004]
[1727066154986,0.078261,63886.0,63879.0,0.082268]
[1727066155288,0.3608,63892.0,63879.0,0.082268]
[1727066155289,0.13,63890.0,63879.0,0.082268]
[1727066155581,0.078263,63884.0,63879.0,0.082268]
[1727066155806,0.078263,63884.0,63879.0,0.078268]
[1727066156485,0.001,63881.0,63879.0,0.078268]
[1727066157188,0.078263,63884.0,63879.0,0.078268]
[1727066157690,0.001,63881.0,63879.0,0.079268]
[1727066157997,0.001,63881.0,63880.0,0.13]
[1727066158182,0.001,63881.0,63880.0,0.208267]
[1727066158973,0.001,63881.0,63880.0,0.078267]
[1727066159586,0.078263,63884.0,63883.0,0.078264]
[1727066159587,0.001,63884.0,63883.0,0.078264]
[1727066160176,0.078254,63891.0,63882.0,0.3608]
[1727066160581,0.078254,63891.0,63887.0,0.078259]
[1727066161383,0.078254,63891.0,63889.0,0.078256]
[1727066161601,0.078254,63891.0,63882.0,0.3608]
[1727066161602,0.3608,63892.0,63885.0,0.13]
[1727066161886,0.3608,63892.0,63891.0,0.078254]
[1727066162591,0.07825,63895.0,63891.0,0.078254]
[1727066162979,0.007,63892.0,63891.0,0.079254]
[1727066163483,0.008,63892.0,63891.0,0.080254]
[1727066164190,0.008,63892.0,63891.0,0.31530757]
[1727066164379,0.3608,63908.0,63891.0,0.31530757]
[1727066164380,0.4908,63919.0,63891.0,1.66741357]
[1727066164582,0.13,63898.0,63897.0,0.04662652]
[1727066164784,0.078251,63893.0,63891.0,0.23705357]
[1727066164981,0.1426,63897.0,63891.0,0.002]
[1727066165176,0.1426,63897.0,63892.0,0.23624889]
[1727066165586,0.13,63894.0,63891.0,0.002]
[1727066166093,0.078253,63892.0,63891.0,0.001]
[1727066166280,0.220848,63897.0,63891.0,0.006]
[1727066166486,0.078248,63896.0,63891.0,0.006]
[1727066166680,0.078248,63896.0,63891.0,0.001]
[1727066166881,0.078248,63896.0,63891.0,0.00574245]
[1727066167087,0.001,63894.0,63892.0,0.078252]
[1727066167286,0.001,63894.0,63892.0,0.12487852]
[1727066168289,0.001,63894.0,63892.0,0.078252]
[1727066168793,0.439045,63899.0,63893.0,0.078251]
[1727066168993,0.439045,63899.0,63894.0,0.1249665]
[1727066169180,0.439045,63899.0,63887.0,0.13]
[1727066169181,0.439045,63899.0,63896.0,0.078247]
[1727066169386,0.4591,63906.0,63898.0,0.0467165]
[1727066169387,0.439036,63906.0,63898.0,0.0467165]
[1727066169696,0.3608,63906.0,63903.0,0.0467165]
[1727066169890,0.078239,63904.0,63901.0,0.0467165]
[1727066170096,0.3608,63906.0,63900.0,0.0467165]
[1727066170285,0.078239,63903.0,63901.0,0.0467165]
[1727066170490,0.078239,63903.0,63901.0,0.2823754]
[1727066170693,0.078243,63900.0,63899.0,0.0467165]
[1727066170882,0.078249,63895.0,63893.0,0.05147028]
[1727066171084,0.078249,63895.0,63893.0,0.0467165]
[1727066171288,0.078251,63893.0,63892.0,0.06545887]
[1727066171493,0.219745,63899.0,63892.0,0.06545832]
[1727066171796,0.3608,63900.0,63898.0,0.07245261]
[1727066171994,0.3608,63915.0,63899.0,0.96028]
[1727066172189,0.3608,63915.0,63906.0,0.04683773]
[1727066172387,0.3608,63915.0,63909.0,0.04683773]
[1727066172688,0.3608,63915.0,63911.0,0.12506673]
[1727066172886,0.3608,63915.0,63912.0,0.14067831]
[1727066173086,0.3608,63915.0,63912.0,0.078228]
[1727066173289,0.3608,63915.0,63914.0,0.06245031]
[1727066173492,0.092,63924.0,63909.0,0.20780954]
[1727066173694,0.045,63924.0,63921.0,0.04679407]
[1727066173893,0.208215,63923.0,63921.0,0.04679407]
[1727066174191,0.078217,63921.0,63918.0,0.04679407]
[1727066174393,0.3608,63919.0,63918.0,0.04679407]
[1727066174788,0.3608,63919.0,63918.0,0.0467651]
[1727066174995,0.045,63924.0,63917.0,0.078222]
[1727066175295,0.045,63924.0,63921.0,0.078217]
[1727066175501,0.3608,63925.0,63920.0,0.04676212]
[1727066175691,0.3608,63934.0,63923.0,0.17676212]
[1727066175893,0.3608,63934.0,63930.0,0.078206]
[1727066176090,0.078195,63939.0,63930.0,0.078206]
[1727066176292,0.078195,63939.0,63931.0,0.078205]
[1727066177304,0.078195,63939.0,63928.0,0.0451]
[1727066177305,0.3608,63940.0,63933.0,0.13]
[1727066177610,0.3608,63940.0,63937.0,0.13]
[1727066177988,0.3608,63940.0,63938.0,0.078196]
[1727066178399,0.3608,63940.0,63932.0,0.078204]
[1727066178699,0.3608,63940.0,63933.0,0.23494384]
[1727066179289,0.3608,63940.0,63938.0,0.001]
[1727066179902,0.3608,63940.0,63936.0,0.078198]
[1727066180290,0.3608,63940.0,63933.0,0.001]
[1727066180491,0.3608,63934.0,63933.0,0.001]
[1727066180701,0.3608,63934.0,63933.0,0.131]
[1727066180900,0.3608,63934.0,63933.0,0.36483685]
[1727066181093,0.3608,63934.0,63933.0,0.23483685]
[1727066181297,0.3608,63934.0,63933.0,0.001]
[1727066181493,0.078202,63933.0,63932.0,0.001]
[1727066182201,0.078202,63933.0,63926.0,0.00473912]
[1727066182398,0.078202,63933.0,63925.0,0.13]
[1727066182603,0.078202,63933.0,63932.0,0.001]
[1727066183213,0.078202,63933.0,63932.0,0.002]
[1727066184393,0.125002,63933.0,63932.0,0.002]
[1727066185098,0.255002,63933.0,63932.0,0.002]
[1727066186406,0.07822,63919.0,63915.0,0.0042]
[1727066186608,0.078228,63913.0,63906.0,0.078235]
[1727066186811,0.3608,63910.0,63906.0,0.078235]
[1727066187103,0.3608,63910.0,63907.0,0.236115]
[1727066187698,0.3608,63919.0,63909.0,0.13]
[1727066187903,0.3608,63919.0,63918.0,0.13]
[1727066188500,0.3608,63919.0,63914.0,0.13]
[1727066188696,0.3608,63919.0,63916.0,0.078223]
[1727066189106,0.3608,63919.0,63917.0,0.078222]
[1727066190509,0.3608,63919.0,63917.0,0.079222]
[1727066191008,0.3608,63919.0,63917.0,0.001]
[1727066191308,0.3608,63929.0,63918.0,0.72618877]
[1727066191510,0.0481,63931.0,63918.0,0.72618877]
[1727066191511,0.3608,63930.0,63921.0,0.13]
[1727066191713,0.3608,63930.0,63918.0,0.59834877]
[1727066191714,0.078212,63925.0,63918.0,0.59834877]
[1727066191908,0.078212,63925.0,63923.0,0.13]
[1727066192105,0.078212,63925.0,63919.0,0.31178058]
[1727066192416,0.0481,63931.0,63921.0,0.13]
[1727066192610,0.0481,63931.0,63924.0,0.078213]
[1727066192909,0.126305,63931.0,63924.0,0.078213]
[1727066193110,0.0481,63931.0,63926.0,0.3608]
[1727066193310,0.0481,63931.0,63921.0,0.13]
[1727066193510,0.0491,63931.0,63924.0,0.3608]
[1727066193714,0.001,63931.0,63924.0,0.3608]
[1727066193915,0.001,63931.0,63926.0,0.13]
[1727066194211,0.001,63931.0,63930.0,0.439006]
[1727066196320,0.001,63931.0,63930.0,0.440006]
[1727066196519,0.0457,63941.0,63936.0,0.078198]
[1727066196722,0.3608,63938.0,63936.0,0.078198]
[1727066197018,0.3608,63937.0,63936.0,0.078198]
[1727066197320,0.078203,63933.0,63930.0,0.080205]
[1727066197521,0.078203,63933.0,63930.0,0.002]
[1727066197821,0.3608,63936.0,63930.0,0.002]
[1727066198002,0.0457,63941.0,63930.0,0.002]
[1727066198003,0.078205,63932.0,63930.0,0.002]
[1727066198604,0.078205,63932.0,63930.0,0.001]
[1727066198818,0.078205,63932.0,63929.0,0.441127]
[1727066199118,0.078205,63932.0,63929.0,0.439007]
[1727066199311,0.078205,63932.0,63930.0,0.001]
[1727066199519,0.078198,63937.0,63931.0,0.078205]
[1727066199823,0.001,63932.0,63931.0,0.078205]
[1727066200211,0.001,63932.0,63931.0,0.208205]
[1727066200717,0.001,63932.0,63931.0,0.44191354]
[1727066201620,0.001,63932.0,63931.0,0.80271354]
[1727066201916,0.001,63932.0,63931.0,0.44291354]
[1727066202307,0.078199,63936.0,63934.0,0.0782]
[1727066202711,0.001,63937.0,63931.0,0.36570854]
[1727066202712,0.078201,63934.0,63933.0,0.13]
[1727066202916,0.078204,63932.0,63931.0,0.002]
[1727066203223,0.079204,63932.0,63931.0,0.002]
[1727066203719,0.176004,63932.0,63931.0,0.002]
[1727066203917,0.176004,63932.0,63931.0,0.001]
[1727066204415,0.126304,63932.0,63931.0,0.001]
[1727066204814,0.001,63932.0,63931.0,0.079205]
[1727066205717,0.001,63932.0,63931.0,0.080205]
[1727066206613,0.001,63932.0,63931.0,0.31600272]
[1727066206919,0.001,63932.0,63931.0,0.31500272]
[1727066207517,0.108363,63932.0,63931.0,0.31500272]
[1727066207712,0.07000269,63932.0,63931.0,0.31500272]
[1727066209417,0.02635576,63932.0,63931.0,0.31500272]
[1727066209619,0.09305235,63932.0,63931.0,0.31500272]
[1727066209823,0.11840811,63932.0,63931.0,0.31500272]
[1727066210210,0.02635363,63932.0,63931.0,0.31500272]
[1727066211522,0.02635363,63932.0,63931.0,1.74504272]
[1727066211729,0.3608,63954.0,63934.0,0.13]
[1727066211730,0.13771294,63946.0,63934.0,0.13]
[1727066212033,0.12035425,63942.0,63941.0,0.13]
[1727066212216,0.078199,63936.0,63935.0,0.23558551]
[1727066212411,0.20090756,63936.0,63932.0,0.36516018]
[1727066212623,0.09093643,63935.0,63932.0,0.4908]
[1727066212924,0.09062661,63934.0,63933.0,0.31336218]
[1727066213228,0.03375325,63934.0,63933.0,0.44336218]
[1727066213523,0.03375325,63934.0,63933.0,0.36516018]
[1727066213841,0.125693,63941.0,63933.0,0.36516018]
[1727066214120,0.44099,63943.0,63938.0,0.13]
[1727066214327,0.44099,63943.0,63942.0,0.13]
[1727066214918,0.44099,63943.0,63942.0,0.208191]
[1727066214919,0.3628,63943.0,63942.0,0.208191]
[1727066215530,0.002,63943.0,63942.0,0.44419208]
[1727066215724,0.078183,63949.0,63943.0,0.07819]
[1727066215928,0.078183,63949.0,63947.0,0.13]
[1727066216530,0.078184,63948.0,63947.0,0.13]
[1727066217225,0.07819,63943.0,63942.0,0.132]
[1727066217521,0.43899,63943.0,63942.0,0.001]
[1727066218023,0.078193,63941.0,63940.0,0.13]
[1727066218233,0.078201,63934.0,63927.0,0.05036212]
[1727066218522,0.078201,63934.0,63923.0,0.3608]
[1727066218523,0.078213,63924.0,63923.0,0.3608]
[1727066218726,0.078213,63924.0,63923.0,0.38525671]
[1727066218924,0.078213,63924.0,63923.0,0.59505795]
[1727066219115,0.078213,63924.0,63923.0,0.61951517]
[1727066219525,0.078213,63924.0,63923.0,0.59505795]
[1727066220023,0.078213,63924.0,63923.0,0.61951508]
[1727066220448,0.078213,63924.0,63923.0,0.23425795]
[1727066220630,0.078222,63917.0,63916.0,0.13]
[1727066222121,0.078222,63917.0,63916.0,0.135]
[1727066222424,0.078222,63917.0,63916.0,0.142]
[1727066222723,0.170415,63923.0,63916.0,0.142]
[1727066222929,0.078219,63920.0,63916.0,0.135]
[1727066223223,0.001,63917.0,63916.0,0.13]
[1727066223632,0.001,63917.0,63916.0,0.4908]
[1727066223830,0.3608,63927.0,63916.0,1.79545809]
[1727066224020,0.001,63923.0,63922.0,0.13]
[1727066224222,0.001,63923.0,63922.0,0.17680955]
[1727066224520,0.001,63923.0,63922.0,0.44307984]
[1727066226231,0.3608,63927.0,63922.0,0.36486384]
[1727066226523,0.3608,63933.0,63925.0,0.3608]
[1727066226727,0.3608,63935.0,63932.0,0.13]
[1727066226916,0.3608,63935.0,63932.0,0.078203]
[1727066227121,0.439,63935.0,63932.0,0.078203]
[1727066228327,0.439,63935.0,63932.0,0.079203]
[1727066228731,0.02535693,63934.0,63932.0,0.080203]
[1727066230226,0.02535693,63934.0,63932.0,0.002]
[1727066230632,0.078202,63933.0,63932.0,0.002]
[1727066230930,0.10355893,63933.0,63932.0,0.002]
[1727066231127,0.11742966,63933.0,63932.0,0.002]
[1727066231327,0.11742966,63933.0,63932.0,0.080204]
[1727066231928,0.02535693,63933.0,63932.0,0.080204]
[1727066232129,0.06675298,63935.0,63932.0,0.08510316]
[1727066232326,0.3608,63933.0,63932.0,0.00689916]
[1727066232530,0.50558464,63933.0,63932.0,0.00689916]
[1727066232919,0.02535693,63933.0,63932.0,0.08510316]
[1727066233127,0.3608,63943.0,63934.0,0.078201]
[1727066233128,0.09211749,63935.0,63934.0,0.078201]
[1727066233330,0.09211878,63935.0,63934.0,0.13]
[1727066233530,0.09211878,63937.0,63936.0,0.078199]
[1727066233837,0.02535544,63937.0,63934.0,0.13]
[1727066234029,0.09211878,63940.0,63939.0,0.078195]
[1727066234236,0.09211878,63940.0,63939.0,0.208195]
[1727066235233,0.09211878,63940.0,63939.0,0.209195]
[1727066235738,0.02535305,63940.0,63939.0,0.36716311]
[1727066236130,0.0253527,63941.0,63939.0,0.39161366]
[1727066236321,0.09214385,63944.0,63940.0,0.02445055]
[1727066236522,0.09214385,63945.0,63944.0,0.078189]
[1727066236728,0.078186,63947.0,63944.0,0.078189]
[1727066236936,0.3608,63949.0,63939.0,0.210195]
[1727066237240,0.647188,63940.0,63939.0,0.002]
[1727066237439,0.517188,63940.0,63939.0,0.002]
[1727066237626,0.438994,63940.0,63939.0,0.002]
[1727066238228,0.438994,63940.0,63939.0,0.001]
[1727066238438,0.438994,63940.0,63939.0,0.002]
[1727066238856,0.438994,63940.0,63939.0,0.001]
[1727066239032,1.43,63940.0,63925.0,0.0036]
[1727066239338,0.3608,63933.0,63926.0,0.23473649]
[1727066239537,0.07821,63927.0,63926.0,0.23473649]
[1727066239728,0.07821,63927.0,63925.0,0.23473649]
[1727066240035,0.0926,63932.0,63924.0,0.13]
[1727066240036,0.078211,63926.0,63924.0,0.13]
[1727066240553,0.078211,63926.0,63925.0,0.23479562]
[1727066241238,0.079211,63926.0,63925.0,0.23479562]
[1727066241936,0.078191,63942.0,63936.0,0.078199]
[1727066242127,0.438986,63947.0,63939.0,0.13]
[1727066242523,0.438986,63947.0,63937.0,0.23392048]
[1727066242524,0.3608,63947.0,63937.0,0.23392048]
[1727066242733,0.078204,63932.0,63930.0,0.13]
[1727066243038,0.078205,63932.0,63930.0,0.23392048]
[1727066243239,0.078205,63932.0,63931.0,0.13]
[1727066243532,0.3608,63935.0,63926.0,0.208211]
[1727066243734,0.078209,63928.0,63926.0,0.13]
[1727066243937,0.20091756,63928.0,63926.0,0.05174143]
[1727066244138,0.11531152,63927.0,63926.0,0.05174143]
[1727066244438,0.11531152,63927.0,63926.0,0.28611485]
[1727066244637,0.11531152,63927.0,63926.0,0.36432585]
[1727066244837,0.17448669,63927.0,63926.0,0.36432585]
[1727066245034,0.17448669,63927.0,63926.0,0.42790758]
[1727066245035,0.13286351,63927.0,63926.0,0.42790758]
[1727066245235,0.114073,63927.0,63926.0,0.42790758]
[1727066245442,0.14857625,63927.0,63926.0,0.42790758]
[1727066245658,0.10752465,63927.0,63926.0,0.42790758]
[1727066245933,0.14857625,63927.0,63926.0,0.36432585]
[1727066246137,0.17395831,63927.0,63926.0,0.36432585]
[1727066246331,0.06640917,63927.0,63926.0,0.36432585]
[1727066246736,0.001,63927.0,63926.0,0.36432585]
[1727066247039,0.10854914,63927.0,63926.0,0.42790826]
[1727066247224,0.001,63927.0,63926.0,0.38878062]
[1727066247426,0.10857481,63927.0,63926.0,0.38878062]
[1727066247637,0.11501954,63927.0,63926.0,0.38878062]
[1727066247937,0.078213,63924.0,63923.0,0.3608]
[1727066248139,0.07928603,63924.0,63916.0,0.00208]
[1727066248342,0.12292271,63918.0,63915.0,0.00482549]
[1727066248532,0.078224,63915.0,63914.0,0.02437594]
[1727066248843,0.20113009,63915.0,63914.0,0.25824849]
[1727066249037,0.19059246,63915.0,63914.0,0.25824849]
[1727066249345,0.23527248,63915.0,63914.0,0.23387255]
[1727066249526,0.23527248,63915.0,63913.0,0.03129512]
[1727066249527,0.11236846,63915.0,63913.0,0.47032212]
[1727066249731,0.11236846,63914.0,63913.0,0.47032212]
[1727066250039,0.12291514,63918.0,63917.0,0.078222]
[1727066250239,0.17338304,63918.0,63917.0,0.13]
[1727066250542,0.06583167,63918.0,63917.0,0.13]
[1727066250727,0.10755137,63920.0,63918.0,0.078221]
[1727066251240,0.10754956,63919.0,63918.0,0.078221]
[1727066251427,0.0658777,63919.0,63918.0,0.078221]
[1727066251841,0.078218,63921.0,63918.0,0.078221]
[1727066252033,0.078218,63921.0,63920.0,0.06241394]
[1727066252542,0.078218,63921.0,63918.0,0.078221]
[1727066252750,0.0943,63928.0,63917.0,0.13]
[1727066252945,0.0943,63928.0,63926.0,0.04681391]
[1727066253138,0.439009,63929.0,63926.0,0.04681391]
[1727066253139,0.3608,63929.0,63926.0,0.078211]
[1727066253443,0.439007,63929.0,63928.0,0.04681391]
[1727066254441,0.439007,63929.0,63928.0,0.04681722]
[1727066256244,0.078209,63928.0,63925.0,0.06241855]
[1727066256446,0.3618,63929.0,63925.0,0.06241855]
[1727066256648,0.440007,63929.0,63928.0,0.04681684]
[1727066256849,0.439007,63929.0,63928.0,0.04681684]
[1727066257042,0.440007,63929.0,63928.0,0.04681684]
[1727066258044,0.440007,63929.0,63928.0,0.04781684]
[1727066258834,0.440007,63929.0,63928.0,0.001]
[1727066259147,0.570007,63929.0,63928.0,0.001]
[1727066259333,0.570007,63929.0,63917.0,0.06241855]
[1727066259334,0.07821,63927.0,63908.0,0.60616]
[1727066259533,0.208232,63909.0,63908.0,0.60616]
[1727066259738,0.286464,63909.0,63908.0,0.60616]
[1727066259945,0.677672,63909.0,63908.0,0.60616]
[1727066260145,0.078232,63909.0,63908.0,0.60616]
[1727066260549,0.677672,63909.0,63908.0,0.60816]
[1727066260743,1.277672,63909.0,63908.0,0.60816]
[1727066262043,0.208232,63909.0,63908.0,0.60816]
[1727066262243,0.208232,63909.0,63908.0,0.60916]
[1727066262431,0.677672,63909.0,63908.0,0.60916]
[1727066262842,0.685672,63909.0,63908.0,0.61016]
[1727066263039,0.685672,63909.0,63908.0,0.60716]
[1727066263239,0.685672,63909.0,63908.0,0.60816]
[1727066263240,0.695672,63909.0,63908.0,0.60816]
[1727066263440,0.687672,63909.0,63908.0,0.60716]
[1727066263743,0.696672,63909.0,63908.0,0.60816]
[1727066263944,0.694672,63909.0,63908.0,0.60816]
[1727066264143,0.693672,63909.0,63908.0,0.60816]
[1727066265151,0.224232,63909.0,63908.0,0.60816]